bitfinex-derivatives/quotes_BTCF0:USTF0_20240925
["timestamp","ask_amount","ask_price","bid_price","bid_amount"]
[1727280534283,0.06211634,63641.0,63640.0,0.078563]
[1727280534487,0.078559,63643.0,63642.0,0.07856]
[1727280536290,0.078559,63643.0,63642.0,0.07956]
[1727280536489,0.078559,63643.0,63642.0,0.12665574]
[1727280536789,0.078559,63643.0,63642.0,0.12665071]
[1727280537091,0.078559,63643.0,63642.0,0.12764919]
[1727280537287,0.07392226,63646.0,63642.0,0.12764919]
[1727280537288,0.15247826,63646.0,63645.0,0.078556]
[1727280538491,0.15247826,63646.0,63642.0,0.080559]
[1727280538492,0.078559,63643.0,63642.0,0.080559]
[1727280538883,0.078559,63643.0,63642.0,0.079559]
[1727280539191,0.078561,63641.0,63640.0,0.04708828]
[1727280539398,0.078561,63641.0,63640.0,0.12565128]
[1727280540279,0.14066352,63644.0,63643.0,0.078559]
[1727280540506,0.078558,63644.0,63643.0,0.078559]
[1727280541281,0.078558,63644.0,63643.0,0.238559]
[1727280542389,0.078558,63644.0,63643.0,0.239559]
[1727280542789,0.078558,63644.0,63643.0,0.28664728]
[1727280543107,0.078558,63644.0,63643.0,0.28764728]
[1727280546396,0.078558,63644.0,63643.0,0.240559]
[1727280546593,0.078558,63644.0,63643.0,0.28764728]
[1727280547694,0.14066352,63644.0,63643.0,0.240559]
[1727280547892,0.15246644,63646.0,63643.0,0.20911437]
[1727280548096,0.14066052,63646.0,63643.0,0.20911437]
[1727280548296,0.14066052,63646.0,63645.0,0.078556]
[1727280549594,0.078555,63646.0,63645.0,0.078556]
[1727280549990,0.078555,63646.0,63645.0,0.079556]
[1727280550198,0.078555,63646.0,63645.0,0.080556]
[1727280552691,0.078555,63646.0,63645.0,0.441356]
[1727280553093,0.01147222,63649.0,63648.0,0.078553]
[1727280553394,0.078551,63649.0,63648.0,0.078553]
[1727280554202,0.078551,63649.0,63648.0,0.12565992]
[1727280554499,0.078551,63649.0,63648.0,0.078553]
[1727280555519,0.14070171,63649.0,63648.0,0.079553]
[1727280556007,0.14070171,63649.0,63648.0,0.080553]
[1727280556804,0.06215071,63649.0,63648.0,0.080553]
[1727280556996,0.07400187,63652.0,63649.0,0.078551]
[1727280557197,0.06215307,63653.0,63652.0,0.078548]
[1727280557495,0.078544,63656.0,63655.0,0.078544]
[1727280557699,0.14069408,63656.0,63655.0,0.238544]
[1727280557898,0.15229026,63656.0,63655.0,0.238544]
[1727280559700,0.15229026,63656.0,63655.0,0.239544]
[1727280559897,0.09014018,63656.0,63655.0,0.239544]
[1727280560299,0.01159618,63656.0,63655.0,0.239544]
[1727280560497,0.00235744,63657.0,63656.0,0.078543]
[1727280560795,0.00235744,63657.0,63656.0,0.111343]
[1727280560996,0.00235744,63657.0,63656.0,0.175843]
[1727280561195,0.00235744,63657.0,63656.0,0.078543]
[1727280561397,0.00235744,63657.0,63656.0,0.12558191]
[1727280561595,0.08089944,63657.0,63656.0,0.04703891]
[1727280561800,0.08089944,63657.0,63655.0,0.002]
[1727280561801,0.00235744,63657.0,63655.0,0.002]
[1727280562011,0.078543,63656.0,63655.0,0.002]
[1727280562513,0.078543,63656.0,63655.0,0.001]
[1727280563028,0.078544,63655.0,63654.0,0.440145]
[1727280563210,0.078544,63655.0,63654.0,0.439345]
[1727280563908,0.078544,63655.0,63654.0,0.3608]
[1727280564297,0.06450752,63657.0,63654.0,0.40783891]
[1727280564503,0.06450752,63657.0,63656.0,0.078543]
[1727280564504,0.00235744,63657.0,63656.0,0.078543]
[1727280564706,0.00235744,63657.0,63656.0,0.144043]
[1727280565502,0.01177148,63660.0,63659.0,0.078539]
[1727280565710,0.078536,63662.0,63661.0,0.078537]
[1727280566310,0.06215008,63667.0,63661.0,0.16]
[1727280566610,0.078527,63669.0,63668.0,0.078528]
[1727280566611,0.15240995,63669.0,63668.0,0.078528]
[1727280567297,0.15240995,63669.0,63661.0,0.16]
[1727280567298,0.01173287,63669.0,63661.0,0.16]
[1727280567504,0.078535,63662.0,63661.0,0.001]
[1727280568307,0.06209061,63666.0,63661.0,0.001]
[1727280568505,0.078529,63668.0,63664.0,0.16]
[1727280569214,0.3608,63672.0,63670.0,0.078525]
[1727280569215,0.42289061,63672.0,63670.0,0.078525]
[1727280569417,0.078524,63671.0,63670.0,0.078525]
[1727280569616,0.14061461,63671.0,63670.0,0.078525]
[1727280569819,0.078524,63671.0,63670.0,0.078525]
[1727280570319,0.078524,63671.0,63670.0,0.079525]
[1727280571009,0.078524,63671.0,63670.0,0.080525]
[1727280573322,0.01157184,63672.0,63671.0,0.078524]
[1727280573323,0.09009484,63672.0,63671.0,0.078524]
[1727280573513,0.078523,63672.0,63671.0,0.078524]
[1727280574416,0.078523,63672.0,63670.0,0.002]
[1727280574417,0.04308726,63674.0,63673.0,0.078522]
[1727280574623,0.01178726,63674.0,63673.0,0.238522]
[1727280574821,0.078517,63677.0,63676.0,0.078518]
[1727280575224,1.89395632,63678.0,63673.0,0.16]
[1727280575225,0.36511632,63678.0,63673.0,0.16]
[1727280575412,0.01372195,63678.0,63677.0,0.317034]
[1727280575611,0.01372195,63678.0,63677.0,0.238517]
[1727280576927,0.00235632,63678.0,63677.0,0.239517]
[1727280577721,0.00235632,63678.0,63677.0,0.240517]
[1727280578735,0.0037,63684.0,63683.0,0.078509]
[1727280578922,0.078507,63685.0,63684.0,0.078508]
[1727280579413,0.078507,63685.0,63677.0,0.002]
[1727280579610,0.078516,63678.0,63677.0,0.001]
[1727280580012,0.078516,63678.0,63676.0,0.3608]
[1727280580224,0.3645,63686.0,63680.0,0.078513]
[1727280580225,0.078513,63681.0,63680.0,0.078513]
[1727280580518,0.078511,63682.0,63681.0,0.078512]
[1727280581219,0.078516,63678.0,63677.0,0.079516]
[1727280581416,0.37588097,63686.0,63677.0,0.161]
[1727280581620,0.078509,63684.0,63683.0,0.078509]
[1727280583525,0.078509,63684.0,63683.0,0.079509]
[1727280583728,0.157018,63684.0,63683.0,0.001]
[1727280584325,1.657018,63684.0,63683.0,0.001]
[1727280584520,1.657018,63684.0,63683.0,0.002]
[1727280585322,0.078517,63677.0,63676.0,0.3608]
[1727280586217,0.078517,63677.0,63663.0,0.22386058]
[1727280586218,0.439317,63677.0,63663.0,0.0673]
[1727280586421,0.078532,63666.0,63663.0,0.0636]
[1727280586925,0.078532,63666.0,63663.0,0.0319]
[1727280587615,0.078532,63666.0,63664.0,0.078532]
[1727280587829,0.078525,63671.0,63665.0,0.16]
[1727280588038,0.078525,63671.0,63670.0,0.078525]
[1727280589218,0.078527,63669.0,63668.0,0.3608]
[1727280589424,0.078527,63669.0,63667.0,0.078529]
[1727280589626,0.07853,63666.0,63665.0,0.079532]
[1727280590331,0.07853,63666.0,63665.0,0.001]
[1727280590728,0.07853,63666.0,63663.0,0.3608]
[1727280591228,0.078527,63669.0,63663.0,0.3608]
[1727280591418,0.01149882,63671.0,63665.0,0.001]
[1727280591620,0.20770861,63676.0,63674.0,0.078521]
[1727280591824,0.20400861,63676.0,63674.0,0.078521]
[1727280592132,0.20400861,63676.0,63675.0,0.078519]
[1727280592316,0.01168414,63676.0,63675.0,0.078519]
[1727280592518,0.50336661,63678.0,63675.0,0.078519]
[1727280592830,0.078518,63677.0,63676.0,0.078518]
[1727280593233,0.3608,63678.0,63677.0,0.078517]
[1727280593429,0.37212972,63678.0,63677.0,0.078517]
[1727280595025,0.078518,63676.0,63675.0,0.001]
[1727280595228,0.37212972,63678.0,63674.0,0.07852]
[1727280595229,0.078519,63675.0,63674.0,0.07852]
[1727280595938,0.078523,63672.0,63671.0,0.078524]
[1727280596328,0.078525,63670.0,63669.0,0.3608]
[1727280597834,0.078525,63670.0,63669.0,0.3618]
[1727280598136,0.238525,63670.0,63669.0,0.3618]
[1727280598343,0.078525,63670.0,63669.0,0.3618]
[1727280598633,0.078525,63670.0,63669.0,0.3628]
[1727280599839,0.078525,63670.0,63669.0,0.441327]
[1727280600337,0.078522,63673.0,63672.0,0.078523]
[1727280600932,0.06209061,63676.0,63675.0,0.078519]
[1727280601128,0.06209061,63677.0,63675.0,0.078519]
[1727280601435,0.06219917,63676.0,63675.0,0.078519]
[1727280601635,0.15205877,63679.0,63675.0,0.3608]
[1727280601825,0.0898596,63679.0,63675.0,0.3608]
[1727280602339,0.0898596,63679.0,63675.0,0.3618]
[1727280602530,0.0113446,63679.0,63678.0,0.078516]
[1727280602837,0.06219917,63680.0,63679.0,0.078514]
[1727280603433,0.14071217,63681.0,63675.0,0.3628]
[1727280603633,0.14071217,63681.0,63680.0,0.078513]
[1727280604436,0.078513,63681.0,63680.0,0.078513]
[1727280605141,0.09032065,63681.0,63680.0,0.078513]
[1727280605745,0.01180765,63681.0,63680.0,0.079513]
[1727280605933,0.14070917,63683.0,63680.0,0.001]
[1727280606245,0.14070917,63683.0,63681.0,0.078512]
[1727280606246,0.14071017,63682.0,63681.0,0.078512]
[1727280607842,0.078512,63681.0,63680.0,0.002]
[1727280608060,0.078518,63676.0,63675.0,0.439319]
[1727280608343,0.317036,63676.0,63675.0,0.3608]
[1727280609247,0.078514,63679.0,63678.0,0.078516]
[1727280609442,0.078511,63682.0,63676.0,0.16]
[1727280609640,0.06227061,63679.0,63676.0,0.16]
[1727280610040,0.06227061,63679.0,63675.0,0.3618]
[1727280610041,0.06227061,63679.0,63678.0,0.078516]
[1727280610233,0.14078461,63679.0,63675.0,0.3618]
[1727280610438,0.238518,63676.0,63675.0,0.440318]
[1727280610640,0.078518,63676.0,63675.0,0.440318]
[1727280610847,0.079518,63676.0,63675.0,0.3628]
[1727280611148,0.14178861,63676.0,63675.0,0.3618]
[1727280611335,0.239518,63676.0,63675.0,0.3618]
[1727280611535,0.14179068,63676.0,63675.0,0.3618]
[1727280611945,0.079518,63676.0,63675.0,0.3618]
[1727280612142,0.079518,63676.0,63675.0,0.3628]
[1727280614044,0.001,63676.0,63675.0,0.441319]
[1727280614451,0.001,63676.0,63675.0,0.474319]
[1727280616959,0.001,63676.0,63675.0,0.441319]
[1727280618147,0.079518,63676.0,63675.0,0.441319]
[1727280620062,0.14180249,63676.0,63675.0,0.3628]
[1727280620545,0.079518,63676.0,63675.0,0.3628]
[1727280620746,1.579518,63676.0,63675.0,0.3628]
[1727280621448,1.658036,63676.0,63670.0,0.04702658]
[1727280621652,0.3608,63671.0,63663.0,0.3608]
[1727280621854,0.22228497,63664.0,63663.0,0.3608]
[1727280622058,0.16,63664.0,63663.0,0.3608]
[1727280622250,0.16,63664.0,63653.0,0.5818]
[1727280622251,0.078541,63658.0,63656.0,0.04702658]
[1727280622458,0.078541,63658.0,63654.0,0.04702658]
[1727280622658,0.078542,63657.0,63655.0,0.078543]
[1727280622855,0.06225914,63659.0,63653.0,0.40870658]
[1727280623053,0.603032,63665.0,63661.0,0.078537]
[1727280623054,0.06225914,63662.0,63661.0,0.078537]
[1727280623255,0.06225914,63666.0,63661.0,0.5208]
[1727280623460,0.078529,63667.0,63665.0,0.078532]
[1727280623461,0.14078814,63667.0,63665.0,0.078532]
[1727280624453,0.1521194,63667.0,63665.0,0.078532]
[1727280624664,0.0735904,63667.0,63661.0,0.439336]
[1727280625069,0.07853,63666.0,63665.0,0.002]
[1727280625964,0.01933126,63667.0,63665.0,0.001]
[1727280626167,0.02433126,63667.0,63665.0,0.001]
[1727280626467,0.02433126,63667.0,63666.0,0.07853]
[1727280626974,0.02033126,63667.0,63666.0,0.07853]
[1727280627757,0.01533126,63667.0,63666.0,0.07853]
[1727280628357,0.02833126,63667.0,63666.0,0.07853]
[1727280629560,0.017,63667.0,63666.0,0.07853]
[1727280629762,0.017,63667.0,63666.0,0.23853]
[1727280629967,0.017,63667.0,63666.0,0.28555658]
[1727280630266,0.017,63667.0,63666.0,0.79607745]
[1727280630455,0.017,63667.0,63666.0,1.15687745]
[1727280630657,0.017,63667.0,63666.0,1.18126]
[1727280631164,0.017,63667.0,63666.0,1.34219261]
[1727280631363,0.017,63667.0,63666.0,1.25981998]
[1727280631557,0.017,63667.0,63666.0,1.95693891]
[1727280631761,0.017,63667.0,63666.0,2.11794704]
[1727280632268,0.017,63667.0,63666.0,2.12941568]
[1727280632571,0.017,63667.0,63666.0,2.03549889]
[1727280632958,0.017,63667.0,63666.0,1.95693891]
[1727280634661,0.017,63667.0,63666.0,1.87840891]
[1727280634862,0.017,63667.0,63666.0,1.35693891]
[1727280635061,0.017,63667.0,63666.0,1.27840891]
[1727280635258,0.017,63667.0,63666.0,0.61500891]
[1727280635463,0.017,63667.0,63666.0,0.43933]
[1727280635659,0.017,63667.0,63666.0,0.48634336]
[1727280636268,0.017,63667.0,63666.0,0.48634632]
[1727280636468,0.017,63667.0,63666.0,0.43933]
[1727280636967,0.017,63667.0,63666.0,0.50201178]
[1727280637173,0.017,63667.0,63666.0,0.46963]
[1727280639268,0.017,63667.0,63666.0,1.08204178]
[1727280639466,0.017,63667.0,63666.0,1.85282585]
[1727280639667,0.017,63667.0,63666.0,1.79014407]
[1727280641175,0.017,63667.0,63666.0,1.86867407]
[1727280641385,0.017,63667.0,63666.0,1.87254177]
[1727280641965,0.017,63667.0,63666.0,1.79014407]
[1727280642270,0.017,63667.0,63666.0,0.61011407]
[1727280642469,0.017,63667.0,63666.0,0.50201377]
[1727280642669,0.017,63667.0,63666.0,0.43933]
[1727280644474,0.017,63667.0,63666.0,0.50201377]
[1727280644674,0.017,63667.0,63666.0,0.43933]
[1727280644980,0.017,63667.0,63666.0,0.48634467]
[1727280645766,0.017,63667.0,63666.0,0.51786]
[1727280646664,0.017,63667.0,63666.0,0.54806]
[1727280648278,0.017,63667.0,63666.0,0.61074746]
[1727280649971,0.017,63667.0,63666.0,0.58054746]
[1727280652573,0.017,63667.0,63666.0,0.51786]
[1727280652878,0.017,63667.0,63666.0,0.58054746]
[1727280653087,0.017,63667.0,63666.0,0.51786]
[1727280653380,0.017,63667.0,63666.0,0.58054746]
[1727280653878,0.017,63667.0,63666.0,0.50201746]
[1727280653879,0.095529,63667.0,63666.0,0.50201746]
[1727280654082,0.095529,63667.0,63666.0,0.43933]
[1727280654284,0.017,63667.0,63666.0,0.43933]
[1727280654468,0.017,63667.0,63666.0,0.51786]
[1727280654969,0.017,63667.0,63666.0,0.58054746]
[1727280655279,0.095529,63667.0,63666.0,0.43933]
[1727280656475,0.22128814,63667.0,63666.0,0.43933]
[1727280657071,0.159029,63667.0,63666.0,0.43933]
[1727280657276,0.45981714,63667.0,63666.0,0.3608]
[1727280657476,1.6725,63667.0,63659.0,0.0470683]
[1727280657781,1.6725,63667.0,63645.0,0.3608]
[1727280657782,0.078546,63653.0,63652.0,0.00235657]
[1727280657982,0.238546,63653.0,63652.0,0.00235657]
[1727280658880,0.244546,63653.0,63652.0,0.00335657]
[1727280659482,0.249546,63653.0,63652.0,0.00335657]
[1727280660380,0.10121933,63653.0,63652.0,0.00335657]
[1727280660783,0.02267333,63653.0,63652.0,0.08190457]
[1727280661089,0.02267333,63653.0,63652.0,0.14467654]
[1727280661585,0.011,63653.0,63652.0,0.08190457]
[1727280662282,0.011,63653.0,63652.0,0.16437381]
[1727280662792,0.011,63653.0,63652.0,0.24292181]
[1727280664078,0.011,63653.0,63652.0,0.16045257]
[1727280664574,0.011,63653.0,63652.0,0.24291829]
[1727280664774,0.011,63653.0,63652.0,0.16045257]
[1727280665381,0.01984,63653.0,63652.0,0.16045257]
[1727280665771,0.01984,63653.0,63652.0,0.08190457]
[1727280666485,0.258386,63653.0,63652.0,0.00335657]
[1727280668788,0.098386,63653.0,63652.0,0.00335657]
[1727280669281,0.098386,63653.0,63652.0,0.08190457]
[1727280669688,0.01984,63653.0,63652.0,0.08190457]
[1727280669882,0.01984,63653.0,63652.0,0.079548]
[1727280670394,0.098386,63653.0,63652.0,0.079548]
[1727280671791,0.098386,63653.0,63652.0,0.001]
[1727280672494,0.098386,63653.0,63652.0,0.079548]
[1727280673690,0.176932,63653.0,63652.0,0.001]
[1727280673986,0.098386,63653.0,63652.0,0.001]
[1727280676487,0.176932,63653.0,63652.0,0.001]
[1727280676700,0.679252,63653.0,63652.0,0.001]
[1727280676897,1.749298,63653.0,63652.0,0.001]
[1727280677103,0.078563,63640.0,63639.0,0.36315649]
[1727280677395,0.078559,63643.0,63642.0,0.07856]
[1727280678487,0.086559,63643.0,63642.0,0.07956]
[1727280679397,0.09833755,63643.0,63642.0,0.07956]
[1727280679698,0.10533755,63643.0,63642.0,0.08056]
[1727280680397,0.10533755,63643.0,63642.0,0.002]
[1727280680795,0.17589655,63643.0,63642.0,0.001]
[1727280681093,0.18389655,63643.0,63642.0,0.002]
[1727280681395,0.18289655,63643.0,63642.0,0.001]
[1727280681600,0.078562,63641.0,63640.0,0.078562]
[1727280681790,0.02677855,63643.0,63639.0,0.36315649]
[1727280681791,0.078563,63640.0,63639.0,0.36315649]
[1727280683183,0.157126,63640.0,63639.0,0.36315649]
[1727280683389,0.157126,63640.0,63639.0,0.3608]
[1727280683592,1.228526,63640.0,63639.0,0.3608]
[1727280683896,1.228526,63640.0,63630.0,0.0321]
[1727280683897,0.078574,63631.0,63630.0,0.0321]
[1727280684100,0.078574,63631.0,63629.0,0.3608]
[1727280684101,0.078575,63630.0,63629.0,0.3608]
[1727280684286,0.078575,63630.0,63617.0,0.3608]
[1727280684287,0.078586,63621.0,63620.0,0.0325]
[1727280685896,0.439386,63621.0,63620.0,0.0325]
[1727280686398,0.078586,63621.0,63620.0,0.0325]
[1727280687492,0.079586,63621.0,63620.0,0.0405]
[1727280688202,0.086586,63621.0,63620.0,0.0335]
[1727280689294,0.165172,63621.0,63620.0,0.001]
[1727280693401,0.078602,63608.0,63601.0,0.3608]
[1727280693590,0.078598,63611.0,63610.0,0.078599]
[1727280694792,0.082598,63611.0,63610.0,0.078599]
[1727280695297,0.084598,63611.0,63610.0,0.078599]
[1727280697502,0.006,63611.0,63610.0,0.078599]
[1727280697901,0.084598,63611.0,63610.0,0.078599]
[1727280699692,0.006,63611.0,63610.0,0.157199]
[1727280700795,0.006,63611.0,63610.0,0.078599]
[1727280702106,0.006,63611.0,63610.0,0.157199]
[1727280702510,0.006,63611.0,63610.0,0.078599]
[1727280702701,0.006,63611.0,63610.0,0.157199]
[1727280709300,0.006,63611.0,63610.0,0.078599]
[1727280710007,0.006,63611.0,63610.0,0.157199]
[1727280710316,0.006,63611.0,63607.0,0.45206016]
[1727280710317,0.078602,63608.0,63607.0,0.440203]
[1727280710513,0.078602,63608.0,63607.0,0.3608]
[1727280710514,0.317204,63608.0,63607.0,0.3608]
[1727280710807,1.817204,63608.0,63607.0,0.3608]
[1727280711010,0.317204,63608.0,63607.0,0.3608]
[1727280711214,0.078608,63603.0,63602.0,0.0307]
[1727280711410,0.238608,63603.0,63602.0,0.0307]
[1727280711914,0.078609,63602.0,63601.0,0.078611]
[1727280713323,0.079609,63602.0,63601.0,0.079611]
[1727280714213,0.080609,63602.0,63601.0,0.084611]
[1727280714911,0.002,63602.0,63601.0,0.084611]
[1727280715411,0.002,63602.0,63601.0,0.445411]
[1727280715912,0.002,63602.0,63601.0,0.524022]
[1727280716108,0.002,63602.0,63601.0,0.52961598]
[1727280716309,0.002,63602.0,63601.0,0.524022]
[1727280716707,0.002,63602.0,63601.0,0.53041348]
[1727280717216,0.002,63602.0,63601.0,0.54218124]
[1727280717607,0.002,63602.0,63601.0,0.53578976]
[1727280718301,0.002,63602.0,63601.0,0.524022]
[1727280720408,0.002,63602.0,63601.0,0.884822]
[1727280724617,0.002,63602.0,63601.0,0.963433]
[1727280724814,0.14065688,63614.0,63607.0,0.078603]
[1727280725016,0.14065588,63615.0,63614.0,0.078595]
[1727280725519,0.06206188,63615.0,63614.0,0.078595]
[1727280725818,0.078593,63615.0,63614.0,0.078595]
[1727280727117,0.078593,63615.0,63608.0,0.425]
[1727280727118,0.008,63615.0,63608.0,0.425]
[1727280727315,0.078601,63612.0,63611.0,0.078598]
[1727280727719,0.078601,63609.0,63608.0,0.439402]
[1727280727911,0.078601,63609.0,63608.0,0.3608]
[1727280728415,0.238601,63609.0,63608.0,0.3608]
[1727280730012,0.239601,63609.0,63608.0,0.3608]
[1727280730407,0.161,63609.0,63608.0,0.439402]
[1727280731422,0.239601,63609.0,63608.0,0.3608]
[1727280731725,0.318202,63609.0,63608.0,0.3608]
[1727280732019,0.32955699,63609.0,63608.0,0.3608]
[1727280732213,0.32955699,63609.0,63603.0,0.078608]
[1727280732214,0.078609,63602.0,63601.0,0.3608]
[1727280732411,0.078612,63600.0,63599.0,0.078613]
[1727280732603,0.078612,63600.0,63594.0,0.00235868]
[1727280732604,0.078618,63595.0,63594.0,0.00235868]
[1727280732805,0.238618,63595.0,63594.0,0.00235868]
[1727280733415,0.078627,63588.0,63587.0,0.078628]
[1727280733922,0.16,63588.0,63583.0,0.3608]
[1727280734314,0.16568194,63588.0,63583.0,0.3608]
[1727280735317,0.078629,63586.0,63585.0,0.07863]
[1727280735517,0.16568194,63588.0,63586.0,0.078629]
[1727280736210,0.238622,63592.0,63583.0,0.3608]
[1727280736414,0.001,63588.0,63583.0,0.3618]
[1727280736906,0.002,63588.0,63587.0,0.078628]
[1727280737321,0.002,63588.0,63587.0,0.317256]
[1727280737515,0.0037,63599.0,63598.0,0.078614]
[1727280737715,0.00235966,63601.0,63599.0,0.078613]
[1727280738020,0.00235966,63601.0,63600.0,0.078612]
[1727280738324,0.00235966,63601.0,63600.0,0.157224]
[1727280739820,0.007,63601.0,63600.0,0.157224]
[1727280740024,0.0037,63613.0,63612.0,0.078597]
[1727280740221,0.238593,63616.0,63615.0,0.078593]
[1727280740921,0.55416,63619.0,63609.0,0.3608]
[1727280741113,0.5208,63619.0,63609.0,0.3608]
[1727280741316,0.5208,63619.0,63610.0,0.00431837]
[1727280741515,0.5208,63619.0,63609.0,0.3608]
[1727280741709,0.07859,63618.0,63615.0,0.078592]
[1727280742020,0.07859,63618.0,63609.0,0.3608]
[1727280742318,0.01,63616.0,63615.0,0.079593]
[1727280742919,0.007,63616.0,63615.0,0.078593]
[1727280744519,0.005,63618.0,63617.0,0.078591]
[1727280745418,0.3608,63619.0,63618.0,0.07859]
[1727280747015,0.3658,63619.0,63618.0,0.07859]
[1727280747321,0.3688,63619.0,63618.0,0.07859]
[1727280747630,0.008,63619.0,63618.0,0.43939]
[1727280755434,0.008,63619.0,63618.0,0.59657]
[1727280756336,0.00605867,63627.0,63626.0,0.07858]
[1727280756632,0.00235867,63627.0,63626.0,0.51796]
[1727280756815,0.00235867,63627.0,63626.0,0.55116]
[1727280757717,0.01535867,63627.0,63626.0,0.47258]
[1727280758724,0.02635867,63627.0,63626.0,0.47358]
[1727280759929,0.10493767,63627.0,63626.0,0.07958]
[1727280761729,0.102579,63627.0,63626.0,0.07958]
[1727280765831,0.024,63627.0,63626.0,0.07958]
[1727280766036,0.024,63627.0,63626.0,0.44038]
[1727280767041,0.024,63627.0,63626.0,0.51896]
[1727280775143,0.102579,63627.0,63626.0,0.44038]
[1727280776045,0.024,63627.0,63626.0,0.44038]
[1727280777547,0.024,63627.0,63626.0,0.48747629]
[1727280777745,0.024,63627.0,63626.0,0.44038]
[1727280778252,0.024,63627.0,63626.0,0.48747629]
[1727280779651,0.024,63627.0,63626.0,0.44038]
[1727280780350,0.024,63627.0,63626.0,0.48747629]
[1727280780351,0.102579,63627.0,63626.0,0.48747629]
[1727280780664,0.102579,63627.0,63626.0,0.44038]
[1727280781245,0.16477363,63627.0,63626.0,0.44038]
[1727280782142,0.16477363,63627.0,63626.0,0.07958]
[1727280782945,0.181158,63627.0,63626.0,0.001]
[1727280783142,0.45171421,63627.0,63626.0,0.001]
[1727280783352,0.373858,63627.0,63626.0,0.001]
[1727280783661,1.89933827,63627.0,63626.0,0.001]
[1727280783848,1.89933834,63627.0,63626.0,0.001]
[1727280784453,2.81023734,63627.0,63626.0,0.001]
[1727280784655,0.07859,63618.0,63617.0,0.12568729]
[1727280784847,0.07859,63618.0,63617.0,0.078591]
[1727280785349,0.14082866,63618.0,63617.0,0.078591]
[1727280786054,0.14582866,63618.0,63617.0,0.078591]
[1727280786255,0.08359,63618.0,63617.0,0.078591]
[1727280787449,0.078595,63614.0,63613.0,0.0319]
[1727280787760,0.078595,63614.0,63613.0,0.110496]
[1727280788354,0.078591,63617.0,63613.0,0.110496]
[1727280788355,0.078594,63615.0,63614.0,0.078593]
[1727280788549,0.02885883,63618.0,63614.0,0.3608]
[1727280788755,0.02885883,63618.0,63617.0,0.078591]
[1727280788756,0.02085883,63618.0,63617.0,0.078591]
[1727280788943,0.01385883,63618.0,63617.0,0.078591]
[1727280789145,0.06223866,63621.0,63618.0,0.078589]
[1727280789350,0.078589,63619.0,63618.0,0.078589]
[1727280791850,0.087589,63619.0,63618.0,0.079589]
[1727280792053,0.097589,63619.0,63618.0,0.080589]
[1727280792355,0.336178,63619.0,63618.0,0.002]
[1727280792958,0.257589,63619.0,63618.0,0.002]
[1727280793163,0.019,63619.0,63618.0,0.08059]
[1727280796264,0.019,63619.0,63618.0,0.15918]
[1727280796464,0.019,63619.0,63618.0,0.31918]
[1727280798059,0.019,63619.0,63618.0,0.08059]
[1727280803868,0.019,63619.0,63618.0,0.12768629]
[1727280804069,0.019,63619.0,63618.0,0.08059]
[1727280805270,0.097588,63619.0,63618.0,0.08059]
[1727280807262,0.097588,63619.0,63618.0,0.12768629]
[1727280808363,0.097588,63619.0,63618.0,0.08059]
[1727280809462,0.097588,63619.0,63618.0,0.14337049]
[1727280810259,0.097588,63619.0,63618.0,0.08059]
[1727280810774,0.176176,63619.0,63618.0,0.08059]
[1727280811159,0.176176,63619.0,63618.0,0.14337049]
[1727280811564,0.097588,63619.0,63618.0,0.08059]
[1727280812374,0.019,63619.0,63618.0,0.08059]
[1727280815566,0.019,63619.0,63618.0,0.15918]
[1727280816679,0.019,63619.0,63618.0,0.22196049]
[1727280816875,0.019,63619.0,63618.0,0.15918]
[1727280818275,0.019,63619.0,63618.0,0.22196049]
[1727280818489,0.019,63619.0,63618.0,0.15918]
[1727280818683,0.019,63619.0,63618.0,0.22196049]
[1727280821284,0.08123866,63619.0,63618.0,0.22196049]
[1727280822777,0.09007866,63619.0,63618.0,0.22196049]
[1727280825278,0.09007866,63619.0,63618.0,0.15918]
[1727280826183,0.02784,63619.0,63618.0,0.15918]
[1727280826375,0.02784,63619.0,63618.0,0.08059]
[1727280827078,0.106428,63619.0,63618.0,0.08059]
[1727280827675,0.106428,63619.0,63618.0,0.14349076]
[1727280828086,0.02784,63619.0,63618.0,0.14349076]
[1727280828289,0.02784,63619.0,63618.0,0.08059]
[1727280828490,0.02784,63619.0,63618.0,0.14349041]
[1727280828875,0.02784,63619.0,63618.0,0.08059]
[1727280829075,0.09027212,63619.0,63618.0,0.08059]
[1727280829392,0.09027212,63619.0,63618.0,0.15918]
[1727280829592,0.02784,63619.0,63618.0,0.15918]
[1727280830089,0.09027212,63619.0,63618.0,0.15918]
[1727280830388,0.02784,63619.0,63618.0,0.40016096]
[1727280830580,0.02784,63619.0,63618.0,0.32180503]
[1727280831180,0.06243212,63625.0,63618.0,1.31473017]
[1727280831383,0.06243212,63628.0,63626.0,0.07858]
[1727280831577,0.06243212,63628.0,63624.0,0.439382]
[1727280831578,0.01370484,63631.0,63630.0,0.078575]
[1727280831783,0.07782295,63634.0,63633.0,0.157142]
[1727280831985,0.07782295,63637.0,63633.0,0.078571]
[1727280832180,0.06243264,63636.0,63635.0,0.078569]
[1727280832397,0.06243264,63636.0,63635.0,0.238569]
[1727280833204,0.43698197,63638.0,63635.0,0.16]
[1727280833488,0.06243264,63639.0,63637.0,0.3608]
[1727280833691,0.06479053,63640.0,63639.0,0.16]
[1727280833988,0.00235789,63640.0,63639.0,0.238564]
[1727280834188,0.00235789,63640.0,63639.0,0.270964]
[1727280834784,0.00235789,63640.0,63639.0,0.349528]
[1727280834985,0.00235789,63640.0,63639.0,0.351528]
[1727280834986,0.00735789,63640.0,63639.0,0.351528]
[1727280835987,0.005,63640.0,63639.0,0.351528]
[1727280836297,0.005,63640.0,63639.0,0.272964]